Cogmind - Beta 13 @@@ ROGUE MODE // 2024.04.29 @ 15:41:02 Player: iwantthegold Result: Destroyed self with Rocket Launcher Performance ------------- Evolutions (1) 500 Regions Visited (2) 400 Robots Destroyed (31) 155 Value Destroyed (894) 894 Prototype IDs (0) 0 Alien Tech Used (0) 0 Bonus (0) 0 TOTAL SCORE: 1949 Bonus ------- None Cogmind --------- Core Integrity 0/400 Matter 105/300 Energy 73/250 System Corruption 0% Temperature Critical (598) Movement Treading (160) Location -9/Materials Parts ------- > --- POWER (1) -------- Ion Engine > --- PROPULSION (3) --- Light Treads Light Treads Aluminum Leg > --- UTILITY (3) ------ Medium Storage Unit Terrain Scan Processor > --- WEAPON (2) ------- Shock Bomb Launcher Rocket Launcher > --- INVENTORY (10) --- Ion Engine Ion Engine Wheel Heat Sink Small Laser Particle Gun Peak State ------------ > --- POWER ------------ Ion Engine > --- PROPULSION ------- Aluminum Leg Aluminum Leg Aluminum Leg > --- UTILITY ---------- Medium Storage Unit Terrain Scan Processor Hardened Light Armor Plating > --- WEAPON ----------- Particle Gun Flak Cannon > --- INVENTORY -------- Ion Engine Ion Engine Light Treads Light Treads Wheel Heat Sink Small Laser Shock Bomb Launcher Rocket Launcher [Rating: 15] Favorites ----------- Power Ion Engine Engine Ion Engine Propulsion Aluminum Leg Treads Light Treads Leg Aluminum Leg Utility Medium Storage Unit Device Improved Terrain Scanner Storage Medium Storage Unit Processor Terrain Scan Processor Protection Hardened Light Armor Plating Weapon Particle Gun Energy Gun Particle Gun Ballistic Gun Assault Rifle Ballistic Cannon Flak Cannon Launcher Shock Bomb Launcher Build | -11 -10 -9 ------- Run | Yrd Mat Mat Slots Evolved 2 | . . 2 Power . | . . . Propulsion 1 | . . 1 Utility 1 | . . 1 Weapon . | . . . Parts Attached 34 | 7 8 19 Power 5 | 1 2 2 Engine 5 | 1 2 2 Core . | . . . Reactor . | . . . Propulsion 10 | 2 2 6 Treads 2 | . . 2 Leg 8 | 2 2 4 Wheel . | . . . Hover . | . . . Flight . | . . . Utility 8 | 2 1 5 Device 3 | 1 . 2 Storage 2 | 1 1 . Processor 1 | . . 1 Hackware . | . . . Protection 2 | . . 2 Artifact . | . . . Weapon 11 | 2 3 6 Energy Gun 5 | 1 2 2 Energy Cannon . | . . . Ballistic Gun 3 | 1 1 1 Ballistic Cannon 1 | . . 1 Launcher 2 | . . 2 Special Weapon . | . . . Impact Weapon . | . . . Slashing Weapon . | . . . Piercing Weapon . | . . . Special Melee Weapon . | . . . Unidentified Prototypes . | . . . Parts Lost 9 | . 1 8 Power . | . . . Propulsion 4 | . . 4 Utility 3 | . . 3 Weapon 2 | . 1 1 Highest Loss Streak 4 | . 1 4 To Critical Strikes . | . . . Average Slot Usage (%) 96 | . 96 95 Engine 12 | . 14 11 Leg 29 | . 28 31 Device 12 | . 14 10 Storage 12 | . 14 11 Processor 1 | . . 2 Protection 3 | . . 7 Energy Gun 10 | . 11 10 Ballistic Gun 11 | . 13 9 Naked Turns . | . . . Heaviest Build 27 | 14 21 27 Greatest Support 40 | 20 20 40 Greatest Overweight (x) 2 | 2 1 1 Average Overweight (x) . | . . . Largest Inventory Capacity 10 | 8 10 10 Average Capacity 9 | 7 9 10 Most Carried 10 | 7 10 10 Average Carried 8 | 3 9 9 Final Capacity 10 | 8 10 10 Final Carried 10 | 7 10 6 Class Distribution -------------------- 50% | Scavenger-Mutant 49% | Mutant Dominant Class ---------------- Mutant | -10/Materials Scavenger-Mutant | -9/Materials Resources | -11 -10 -9 ----------- Run | Yrd Mat Mat Matter Collected 736 | 197 228 311 Remotely . | . . . Salvage Created 1021 | 38 408 575 Parts 62 | 5 18 39 Haulers Intercepted . | . . . Recyclers Shooed 3 | . 1 2 Parts Field Recycled . | . . . Retrieved Matter . | . . . Parts Self-Destructed . | . . . Prevented . | . . . Kills | -11 -10 -9 ------- Run | Yrd Mat Mat Combat Hostiles Destroyed 26 | . 11 15 Guns 23 | . 11 12 Cannons 2 | . . 2 AOE 1 | . . 1 Classes Destroyed 7 | 1 2 4 Worker 1 | . . 1 Tunneler 3 | 2 . 1 Watcher 1 | . . 1 Swarmer 5 | . 3 2 Grunt 16 | . 8 8 Brawler 1 | . . 1 Sentry 4 | . . 4 Best Kill Streak 4 | 2 3 4 Combat Bots Only 4 | . 3 4 Max Kills in Single Turn 2 | 1 1 2 Gunslinging . | . . . Exploded 1 | . . 1 Melee . | . . . Uniques/NPCs Destroyed . | . . . Combat | -11 -10 -9 -------- Run | Yrd Mat Mat Hostile Shots Fired 181 | . 53 128 Missed 32 | . 12 20 Damage Taken 2262 | . 473 1789 Core 481 | . 69 412 Absorbed by Shields . | . . . Core Remaining (%) 86 | 100 72 . Volleys Fired 109 | 3 46 60 Largest 2 | 2 2 2 Hottest 109 | 70 85 109 Shots Fired 195 | 6 73 116 Gun 179 | 6 73 100 Cannon 13 | . . 13 Launcher 3 | . . 3 Special . | . . . Kinetic 100 | 3 40 57 Thermal 92 | 3 33 56 Explosive 3 | . . 3 Electromagnetic . | . . . Robot Hit Streak 12 | 4 12 9 Robot Miss Streak 6 | . 3 6 Penetration Max . | . . . Secondary Targets . | . . . Shots Hit Robots 128 | 4 49 75 Core Hits 61 | 3 20 38 Critical Kills 2 | . 2 . Critical Parts Destroyed . | . . . Critical Strikes 5 | 1 4 . Burn 3 | 1 2 . Destroy 2 | . 2 . Melee Attacks . | . . . Impact . | . . . Slashing . | . . . Piercing . | . . . Sneak Attacks . | . . . Combat Hostiles . | . . . Follow-up Attacks . | . . . Damage Inflicted 2078 | 54 612 1412 Guns 1589 | 54 601 934 Cannons 176 | . . 176 Explosions 302 | . . 302 Melee . | . . . Ramming 11 | . 11 . Kinetic 863 | 15 328 520 Thermal 902 | 39 273 590 Explosive 302 | . . 302 Electromagnetic . | . . . Impact . | . . . Slashing . | . . . Piercing . | . . . Highest Corruption . | . . . Average Corruption . | . . . Corruption Purged . | . . . Corruption Blocked . | . . . Overload Shots . | . . . Overflow Damage 17 | . . 17 Projectiles . | . . . Explosions 17 | . . 17 Melee . | . . . Knockbacks 3 | . . 3 Impact . | . . . Kinetic 3 | . . 3 Secondary . | . . . Self-Inflicted Damage 76 | . . 76 Shots 2 | . . 2 Rammed . | . . . Targets Rammed 2 | . 2 . Kicked 2 | . 2 . Crushed . | . . . Highest Temperature 809 | 70 126 809 Average Temperature 161 | 41 52 217 Received Heat Transfer 786 | . 225 561 Effects 30 | . . 30 Shutdowns 6 | . . 6 Energy Bleed 2 | . . 2 Interference 5 | . . 5 Matter Decay 3 | . . 3 Short Circuit 3 | . . 3 Damage (minor) 3 | . . 3 Damage (major) 6 | . . 6 Damage (core) 2 | . . 2 Siege Activations . | . . . Robots Corrupted . | . . . Combat Hostiles . | . . . Parts Fried . | . . . Impact Corruptions . | . . . Robots Melted . | . . . Combat Hostiles . | . . . Parts Melted 8 | 1 3 4 Heat Transferred 2566 | 185 938 1443 Parts Sabotaged . | . . . Parts Stolen . | . . . Parts Stripped . | . . . Power Chain Reactions . | . . . Alert | -11 -10 -9 ------- Run | Yrd Mat Mat Peak Influence 369 | 10 244 369 Initial 41 | . 6 41 Average 114 | 2 111 133 Maximum Alert Level 1 | . 1 1 Low Security (%) 78 | 100 69 86 Level 1 21 | . 30 13 Level 2 . | . . . Level 3 . | . . . Level 4 . | . . . Level 5 . | . . . High Security . | . . . Max Security . | . . . Squads Dispatched 4 | . 3 1 Investigation 3 | . 2 1 Extermination . | . . . Reinforcement 1 | . 1 . Assault . | . . . Garrison . | . . . Intercept . | . . . Searches Triggered . | . . . Construction Impeded . | . . . Haulers Reinforced . | . . . Active Scanning Responses . | . . . Cargo Convoy Interrupts . | . . . Stealth | -11 -10 -9 --------- Run | Yrd Mat Mat Distress Signals 7 | . 1 6 Communications Jammed . | . . . Distress Signals . | . . . Times Spotted 54 | . 25 29 Peak Tracking Total 11 | . 4 11 Tactical Retreats 6 | . 2 4 Traps | -11 -10 -9 ------- Run | Yrd Mat Mat Traps Triggered 3 | . 2 1 Indirectly . | . . . Trap Hack Attempts . | . . . Triggered . | . . . Disarmed . | . . . Reprogrammed . | . . . Reused . | . . . Traps Extracted . | . . . Installed . | . . . Triggered . | . . . Machines | -11 -10 -9 ---------- Run | Yrd Mat Mat Machines Disabled 2 | . . 2 Max in Single Turn 1 | . . 1 Machines Repaired . | . . . Machines Dismantled . | . . . Machines Sabotaged . | . . . Overloaded Fab Kills . | . . . Hacking | -11 -10 -9 --------- Run | Yrd Mat Mat Machines Accessed 1 | . 1 . Terminals 1 | . 1 . Fabricators . | . . . Repair Stations . | . . . Recycling Units . | . . . Scanalyzers . | . . . Garrison Access . | . . . Total Hacks 1 | . 1 . Successful 1 | . 1 . Failed . | . . . Catastrophic . | . . . Database Lockouts . | . . . Manual 1 | . 1 . Terminals 1 | . 1 . Fabricators . | . . . Repair Stations . | . . . Recycling Units . | . . . Scanalyzers . | . . . Garrison Access . | . . . Terminal Hacks 1 | . 1 . Level Access Points 1 | . 1 . Fabricator Hacks . | . . . Repair Station Hacks . | . . . Recycling Unit Hacks . | . . . Scanalyzer . | . . . Garrison Access Hacks . | . . . Unauthorized Hacks . | . . . Terminals . | . . . Fabricators . | . . . Repair Stations . | . . . Recycling Units . | . . . Scanalyzers . | . . . Garrison Access . | . . . Data Cores Recovered . | . . . Used . | . . . Hacking Detections . | . . . Full Trace Events . | . . . Feedback Events . | . . . Feedback Blocked . | . . . Robot Schematics Acquired . | . . . Robots Built . | . . . Authchips . | . . . Time . | . . . Total Robot Build Rating . | . . . Part Schematics Acquired . | . . . Parts Built . | . . . Authchips . | . . . Time . | . . . Total Part Build Rating . | . . . Parts Repaired . | . . . Time . | . . . Parts Recycled . | . . . Recycled Matter . | . . . Retrieved Matter . | . . . Retrieved Components . | . . . Parts Scanalyzed . | . . . Part Schematics Acquired . | . . . Parts Damaged . | . . . Bothacking | -11 -10 -9 ------------ Run | Yrd Mat Mat Used RIF Installer . | . . . Robots Hacked . | . . . Non-combat . | . . . Combat . | . . . Robot Hacks Applied . | . . . Relay Couplers Released . | . . . Fabnet Peak Effective % . | . . . Robots Rewired . | . . . Allies Hacked . | . . . Hacks Repelled . | . . . Allies | -11 -10 -9 -------- Run | Yrd Mat Mat Total Allies . | . . . Largest Group . | . . . Highest-Rated Group . | . . . Highest-Rated Ally . | . . . Total Orders . | . . . Ally Attacks . | . . . Total Damage . | . . . Kills . | . . . Allies Corrupted . | . . . Allies Melted . | . . . Intel | -11 -10 -9 ------- Run | Yrd Mat Mat Robot Analysis Total . | . . . Derelict Logs Recovered . | . . . Drone Launches . | . . . Drone Recoveries . | . . . Exploration | -11 -10 -9 ------------- Run | Yrd Mat Mat Turns Passed 1729 | 92 930 707 Spaces Moved 956 | 56 539 361 Core 14 | 14 . . Treads 4 | . . 4 Legs 938 | 42 539 357 Wheels . | . . . Hover . | . . . Flight . | . . . Fastest Speed 50 | 50 120 120 Average Speed 130 | 116 138 120 Slowest Speed 190 | 150 190 190 Overloaded Moves . | . . . Propulsion Burnouts . | . . . Robots Hopped . | . . . Cave-ins Triggered . | . . . Exploration Rate (%) 41 | 4 87 33 Regions Visited 2 Branch Regions . Pre-discovered Areas . | . . . Known Exits Taken 1 | . 1 . Unknown Exits Taken 1 | 1 . . Scrap Searched . | . . . Spaces Dug . | . . . Terrain Destroyed 16 | . . 16 Melee . | . . . Projectile . | . . . AOE 16 | . . 16 Terrain Rammed . | . . . Walls Destroyed . | . . . Machines Disabled . | . . . Actions | -11 -10 -9 --------- Run | Yrd Mat Mat Total 1253 | 74 659 520 Wait 106 | . 46 60 Move 954 | 55 538 361 Hop . | . . . Pick Up 25 | 8 8 9 Fast Attach 11 | 7 1 3 Attach 10 | . 1 9 Detach . | . . . Swap 13 | . 6 7 Drop 23 | 1 11 11 Fire 109 | 3 46 60 Melee . | . . . Ram . | . . . Kick 2 | . 2 . Crush . | . . . Escape Stasis . | . . . Rewire . | . . . Trap . | . . . Miscellaneous . | . . . Route ------- -11/Scrapyard -10/Materials (discovered 4 exits: *Mat x3 / [*Min]) -9/Materials History --------- Turn | Location | Event 24 | -11/Scrapyard | Discovered new exit (range 16) 93 | -11/Scrapyard | Entered Materials 230 | -10/Materials | Discovered new exit (range 11) 233 | -10/Materials | Identified exit to Materials 300 | -10/Materials | Build established: Mutant 1023 | -10/Materials | Entered another Materials area 1023 | -9/Materials | Evolved 2 slots: Propulsion x1, Utility x1 1061 | -9/Materials | Build established: Scavenger-Mutant 1706 | -9/Materials | Core integrity fell below 50% 1722 | -9/Materials | Core integrity fell below 20% 1730 | -9/Materials | Destroyed self with Rocket Launcher Last Messages --------------- 01722_ Overheating: Core damaged (-40). 01724_ Particle Gun broken. 01724_ Overheating: Short circuit. 01724_ K-01 Serf cleans the Recycling Unit. 01726_ Overheating: Lgt. Treads damaged (-19). 01726_ Overheating: Lgt. Treads damaged (-23). 01726_ Overheating: Terrain Scan Processor damaged (-7). 01726_ Overheating: Aluminum Leg damaged (-23). 01726_ M-13 Machinist repairs B-36 Bruiser. 01726_ Y-45 Defender destroyed. 01726_ Recycling Unit disabled. 01726_ Autogun tumbles out of recycling unit. 01728_ Power failure, Ion Engine shutdown. 01728_ Overheating: Lgt. Treads damaged (-24). 01728_ Overheating: Rocket Launcher damaged (-14). 01728_ K-01 Serf destroyed. 01728_ T-07 Excavator destroyed. 01729_ R-06 Scavenger collects Beam Rifle. 01730_ Destroyed Com. Wheel. Map ----- +----------------------------------------------------+ | ???????????????????????????????????????????????? | | ???????????????????????????????????????????????? | | ???????????????????????????????????????????????? | | ???????????????????????????????????????????????? | | ???????????????????????????????????????????????? | | ???????????????????????????????????????????????? | | ?""????????????????????????????????????????????? | | "T"### #???????????????????????????????????????? | | ??????????????????????????????????????? | | ??????????????????????????????????????? | | """ ????????????????????????????????????????? | | """??????????????????????????????????????????? | | ""???????????????????????????????????????????? | | """??????????????????????????????????????????? | | """ ???????????????????????????????????????? | | ??????????????????????????????????????? | | ! ??????????????????????????????????????? | | ??????????????????????????????????????? | | ###### ????????????????????????????????????????? | | ?????? ??????????????????????????????????????? | | ?????# #?????????????????????????????????????? | | ?????+ #?????????########????????????????????? | | ?????# #?????????# = #????????????????????? | | ?????# #?????????# #????????????????????? | | ?????# #?????????# g w ##???????????????????? | | ###### ########### "Y !@ #???????????????????? | | # ## /b" %[ #??????????????????? | | # ##""" #% rg= #??????????????????? | | # ##""" #+# #??????????????????? | | # ##""" # r ??????????????????? | | ###### ## mg k "?????????????????? | | ????## ##""" ""# ""????????????????? | | ##### #""" Y"### % ???????????????? | | #""" ""#?# = ""???????????????? | | + #?#=%* ""???????????????? | | ##########?# # "????????????????? | | ##### #??????????# + ????????????????? | | ????#######??????????# ###????????????????? | | ?????????????????????# #??????????????????? | | ????????????????????? ??????????????????? | | ?????????????????????? ?????????????????? | | ?????????????????????? ?????????????????? | | ??????????????????????###??+???????????????????? | | ???????????????????????????????????????????????? | | ???????????????????????????????????????????????? | | ???????????????????????????????????????????????? | | ???????????????????????????????????????????????? | | ???????????????????????????????????????????????? | | ???????????????????????????????????????????????? | | ???????????????????????????????????????????????? | +----------------------------------------------------+ Best States ------------- Heat Dissipation 38 Energy Generation 10 Energy Capacity 250 Matter Stores 300 Matter Capacity 300 Sight Range 16 Terrain Scan Range 16 Terrain Scan Density 85 Armor Coverage 150 Evasion (%) 55 Recoil Reduction 2 Item Schematics ----------------- None Robot Schematics ------------------ None Fabricated ------------ Nothing Alien Tech Used ----------------- None Achievements -------------- None Challenges ------------ None Game ------ Seed MachineChainNanovents Manual? 0 Play Time 00:18:07 Cumulative 30.2 hours Start 2024.04.29 @ 15:24:07 End 2024.04.29 @ 15:41:02 Sessions 1 Manual Loads 0 Difficulty Rogue Special Mode None Game No. 42 Rogue 42 Adventurer 0 Explorer 0 Win Type - Total 0 Types 0/0/0/0/0/0/0/0/0 Lore% 15 Gallery% 28 Achievement% 20 Wizard Run 0 Options --------- Layout 1 ASCII 0 Keyboard 0 Movement Mouse Keybinds 0 Fullscreen 1 Font 18/SmallcapsGlow Map View 54x44 Zoom Use 0% Tactical HUD 1 Map Filters NONE Filters NONE Steam 0 RUN: 613b5134-f05e-4b0e-ba35-d9e5b4521468